bitfinex/quotes_BTCUSD_20241107
["timestamp","ask_amount","ask_price","bid_price","bid_amount"]
[1730977440789,0.000833,75013.0,75012.0,0.31277802]
[1730977442377,0.000833,75013.0,75012.0,0.26374102]
[1730977443233,0.000833,75013.0,75012.0,0.1315]
[1730977443691,0.000833,75013.0,75012.0,0.1295]
[1730977444159,0.000833,75013.0,75012.0,0.0451]
[1730977444392,0.000833,75013.0,75007.0,0.127]
[1730977444625,0.000833,75013.0,75006.0,0.005]
[1730977446466,0.04484952,75013.0,75006.0,0.005]
[1730977447776,0.04484952,75013.0,75008.0,0.002]
[1730977448015,0.04484952,75013.0,75006.0,0.005]
[1730977448228,0.04484952,75013.0,75005.0,0.005]
[1730977448449,0.04484952,75013.0,75004.0,0.007]
[1730977448916,0.04484952,75013.0,75004.0,0.002]
[1730977449112,0.04484952,75013.0,75004.0,0.007]
[1730977449596,0.04484952,75013.0,75011.0,0.02072274]
[1730977449804,0.04484952,75013.0,75004.0,0.002]
[1730977449805,0.04484952,75013.0,75012.0,0.02072274]
[1730977450023,0.04484952,75013.0,75011.0,0.02072274]
[1730977450471,0.04484952,75013.0,75008.0,0.02072274]
[1730977450689,0.04484952,75013.0,75009.0,0.02488204]
[1730977450897,0.04484952,75013.0,75010.0,0.02488204]
[1730977451107,0.1240136,75021.0,75019.0,1.95308448]
[1730977452909,0.14247697,75021.0,75019.0,1.95308448]
[1730977453134,0.0763,75032.0,75020.0,0.02487447]
[1730977453401,0.0763,75032.0,75019.0,1.95308448]
[1730977453402,0.1240136,75025.0,75019.0,1.95308448]
[1730977454263,0.59674423,75021.0,75019.0,1.95308448]
[1730977454713,0.32832051,75020.0,75019.0,1.95308448]
[1730977454958,0.26524102,75020.0,75019.0,1.95308448]
[1730977455150,0.27769877,75020.0,75019.0,1.95308448]
[1730977455371,0.36074802,75020.0,75019.0,1.95308448]
[1730977455588,0.34829027,75020.0,75019.0,1.95308448]
[1730977457919,0.65193314,75020.0,75019.0,1.3442306]
[1730977458149,0.65193314,75020.0,75019.0,1.32705435]
[1730977458150,0.46805582,75020.0,75019.0,1.32705435]
[1730977459019,1.96805582,75020.0,75019.0,1.32705435]
[1730977459463,2.09216453,75020.0,75019.0,1.32705435]
[1730977459684,2.13198524,75020.0,75019.0,1.32705435]
[1730977459943,2.26422801,75020.0,75019.0,1.32705435]
[1730977460616,2.2244073,75020.0,75019.0,1.32705435]
[1730977461260,2.26422801,75020.0,75019.0,1.32705435]
[1730977461449,2.2244073,75020.0,75019.0,1.32705435]
[1730977461613,2.26421502,75020.0,75019.0,1.32705435]
[1730977461834,2.26421501,75020.0,75019.0,1.32705435]
[1730977462228,2.26421501,75020.0,75019.0,1.30372721]
[1730977462627,2.2244073,75020.0,75019.0,1.30372721]
[1730977462829,2.2244073,75020.0,75019.0,1.2547608]
[1730977463101,2.2244073,75020.0,75019.0,1.24054597]
[1730977463102,2.3577043,75020.0,75019.0,1.24054597]
[1730977463319,2.3585373,75020.0,75019.0,1.22633114]
[1730977463529,0.2607,75007.0,75006.0,0.001666]
[1730977463735,0.55645093,75007.0,75006.0,0.001666]
[1730977464619,0.87599008,75007.0,75006.0,0.001666]
[1730977464857,0.87599008,75007.0,74983.0,0.001666]
[1730977464858,0.14710871,74984.0,74983.0,0.001666]
[1730977465252,0.27934973,74984.0,74983.0,0.001666]
[1730977468143,0.15524102,74984.0,74983.0,0.001666]
[1730977469279,0.1988111,74984.0,74983.0,0.001666]
[1730977470153,0.22796221,74984.0,74983.0,0.001666]
[1730977472158,0.21566221,74984.0,74983.0,0.001666]
[1730977472381,0.20496221,74984.0,74982.0,0.001332]
[1730977472594,0.13224102,74983.0,74982.0,0.001332]
[1730977475986,0.18558102,74983.0,74982.0,0.001332]
[1730977477466,0.05334,74983.0,74982.0,0.125332]
[1730977480421,0.05334,74983.0,74982.0,0.127332]
[1730977480644,0.05334,74983.0,74982.0,0.125332]
[1730977483161,0.18558102,74983.0,74982.0,0.001332]
[1730977486339,0.21063871,74983.0,74982.0,0.001332]
[1730977486550,0.18558102,74983.0,74982.0,0.01379109]
[1730977489418,0.18558102,74983.0,74982.0,0.01380945]
[1730977491969,0.18558102,74983.0,74982.0,0.01381]
[1730977493447,0.20858102,74983.0,74982.0,0.01381]
[1730977493870,0.20858102,74983.0,74982.0,2.01381]
[1730977494099,0.34593871,74983.0,74982.0,2.01381]
[1730977496015,0.31858102,74983.0,74982.0,2.01381]
[1730977496868,0.31013207,74983.0,74982.0,2.01381]
[1730977500106,0.31096507,74983.0,74982.0,2.01381]
[1730977501380,0.38921309,74983.0,74982.0,2.001332]
[1730977501592,0.38921309,74983.0,74982.0,2.01382024]
[1730977502914,0.51493398,74983.0,74982.0,2.01382024]
[1730977503349,0.55650274,74983.0,74982.0,2.01382024]
[1730977503607,0.51493398,74983.0,74982.0,2.01382024]
[1730977504452,0.47051309,74983.0,74982.0,2.01382024]
[1730977504905,0.31096507,74983.0,74982.0,2.01382024]
[1730977505969,0.04572405,74983.0,74982.0,2.01382024]
[1730977506230,0.000833,74983.0,74982.0,2.14202024]
[1730977506688,0.000833,74983.0,74982.0,2.14402024]
[1730977507952,0.000833,74983.0,74982.0,2.131532]
[1730977508161,0.000833,74983.0,74982.0,2.14399954]
[1730977508577,0.000833,74983.0,74982.0,2.14899954]
[1730977509237,0.000833,74983.0,74982.0,2.14199954]
[1730977510095,0.000833,74983.0,74982.0,2.14399954]
[1730977510306,0.000833,74983.0,74982.0,2.14199954]
[1730977511116,0.000833,74983.0,74982.0,2.14399954]
[1730977511571,0.000833,74983.0,74982.0,2.14398832]
[1730977512602,0.000833,74983.0,74982.0,2.14898832]
[1730977513301,0.000833,74983.0,74982.0,2.14398832]
[1730977513516,0.000833,74983.0,74982.0,2.14198832]
[1730977513880,0.000833,74983.0,74982.0,2.14398832]
[1730977514878,0.000833,74983.0,74982.0,2.14398244]
[1730977515843,0.000833,74983.0,74982.0,2.14898244]
[1730977518363,0.000833,74983.0,74982.0,2.131532]
[1730977518562,0.000833,74983.0,74982.0,2.14397749]
[1730977519615,0.000833,74983.0,74982.0,2.14197749]
[1730977520235,0.13807402,74983.0,74982.0,2.01377749]
[1730977520447,0.13307402,74983.0,74982.0,2.01377749]
[1730977521908,0.13307402,74983.0,74982.0,2.01377583]
[1730977525335,0.13307402,74983.0,74982.0,2.401422]
[1730977525573,0.13307402,74983.0,74982.0,2.41386605]
[1730977528790,0.13307402,74983.0,74982.0,2.401422]
[1730977529019,0.13307402,74983.0,74982.0,2.41386178]
[1730977529758,0.13307402,74983.0,74982.0,2.4337637]
[1730977531586,0.000833,74983.0,74982.0,2.4357637]
[1730977532113,0.000833,74983.0,74982.0,2.4337637]
[1730977532357,0.000833,74983.0,74982.0,2.4827411]
[1730977533308,0.000833,74983.0,74982.0,2.5655411]
[1730977533762,0.000833,74983.0,74982.0,2.5675411]
[1730977535461,0.000833,74983.0,74982.0,2.5725411]
[1730977535707,0.000833,74983.0,74982.0,2.57256484]
[1730977539001,0.000833,74983.0,74982.0,2.57256442]
[1730977541567,0.000833,74983.0,74982.0,2.56556442]
[1730977541786,0.000833,74983.0,74982.0,2.56756442]
[1730977542720,0.000833,74983.0,74982.0,2.56755979]
[1730977544107,0.000833,74983.0,74982.0,2.56555979]
[1730977544331,0.000833,74983.0,74982.0,2.56755979]
[1730977544562,0.000833,74983.0,74982.0,2.57255979]
[1730977555790,0.000833,74983.0,74982.0,2.57055979]
[1730977556227,0.000833,74983.0,74982.0,2.540222]
[1730977556465,0.000833,74983.0,74982.0,2.57258077]
[1730977556988,0.000833,74983.0,74982.0,2.57058077]
[1730977557211,0.000833,74983.0,74982.0,2.56558077]
[1730977557432,0.000833,74983.0,74982.0,2.43378077]
[1730977559591,0.15607402,74983.0,74982.0,2.43378077]
[1730977559822,0.15607402,74983.0,74982.0,2.41386768]
[1730977560284,0.15607402,74983.0,74982.0,2.4338013]
[1730977561649,0.15607402,74983.0,74982.0,2.41386768]
[1730977561861,0.15607402,74983.0,74982.0,2.401422]
[1730977562107,0.28812197,74983.0,74982.0,2.43380354]
[1730977562333,1.06002197,74983.0,74982.0,2.41387644]
[1730977562549,1.09991551,74983.0,74982.0,2.401422]
[1730977562761,1.06002197,74983.0,74982.0,2.401422]
[1730977562981,1.11986229,74983.0,74982.0,2.401422]
[1730977563211,1.06002197,74983.0,74982.0,2.37268467]
[1730977563695,1.14489878,74983.0,74982.0,2.37268467]
[1730977564554,1.10502197,74983.0,74982.0,2.37268467]
[1730977569163,1.10502197,74983.0,74982.0,2.37435067]
[1730977569164,1.14488878,74983.0,74982.0,2.37435067]
[1730977569377,1.21538497,74983.0,74982.0,2.37435067]
[1730977569956,1.08202197,74983.0,74982.0,2.37435067]
[1730977570139,1.21538497,74983.0,74982.0,2.37435067]
[1730977570460,1.25520253,74983.0,74982.0,2.37435067]
[1730977571122,1.21538497,74983.0,74982.0,2.37435067]
[1730977571581,1.2551933,74983.0,74982.0,2.37435067]
[1730977571786,2.7551933,74983.0,74982.0,2.37435067]
[1730977572616,2.71538497,74983.0,74982.0,2.37435067]
[1730977573253,2.7551933,74983.0,74982.0,2.37435067]
[1730977573875,2.79505703,74983.0,74982.0,2.37435067]
[1730977574087,2.79497372,74983.0,74982.0,2.37435067]
[1730977574299,2.71538497,74983.0,74982.0,2.37435067]
[1730977574505,2.77507602,74983.0,74982.0,2.37435067]
[1730977574922,2.71538497,74983.0,74982.0,2.37435067]
[1730977575553,2.58202197,74983.0,74982.0,2.37435067]
[1730977575761,2.71538497,74983.0,74982.0,2.32235633]
[1730977581373,2.87192709,74983.0,74982.0,2.32235633]
[1730977581786,2.87192709,74983.0,74982.0,2.20692136]
[1730977582008,2.87192709,74983.0,74982.0,2.17372068]
[1730977582219,2.89492709,74983.0,74982.0,1.46650847]
[1730977582422,2.89492709,74983.0,74982.0,1.40349674]
[1730977582837,2.92739602,74983.0,74982.0,1.22426674]
[1730977583247,2.92739602,74983.0,74982.0,1.12690674]
[1730977583659,2.92739602,74983.0,74982.0,1.08690674]
[1730977583865,2.92739602,74983.0,74982.0,1.05090674]
[1730977585430,2.92739602,74983.0,74982.0,0.94200855]
[1730977585870,2.93239602,74983.0,74982.0,0.94300855]
[1730977586334,2.83107701,74983.0,74982.0,0.94200855]
[1730977586765,2.83707701,74983.0,74982.0,0.94300855]
[1730977587610,2.69080595,74983.0,74982.0,0.94300855]
[1730977587815,2.76907701,74983.0,74982.0,0.94300855]
[1730977588295,2.76907701,74983.0,74982.0,0.89283677]
[1730977588508,2.90131978,74983.0,74982.0,0.89283677]
[1730977590317,2.76907701,74983.0,74982.0,0.89283677]
[1730977591438,2.82243301,74983.0,74982.0,0.89283677]
[1730977592452,2.86397506,74983.0,74982.0,0.89283677]
[1730977593530,2.90371735,74983.0,74982.0,0.89283677]
[1730977593694,2.86397506,74983.0,74982.0,0.89283677]
[1730977593891,3.11424927,74983.0,74982.0,0.84183677]
[1730977594899,3.10824927,74983.0,74982.0,0.84083677]
[1730977595108,3.11324927,74983.0,74982.0,0.84183677]
[1730977595312,3.10924927,74983.0,74982.0,0.84183677]
[1730977595524,3.10924927,74983.0,74982.0,0.84083677]
[1730977595525,3.06748889,74983.0,74982.0,0.84083677]
[1730977595972,3.07248889,74983.0,74982.0,0.84183677]
[1730977596827,2.99688889,74983.0,74982.0,0.84183677]
[1730977597391,3.05652946,74983.0,74982.0,0.84183677]
[1730977598308,2.99688889,74983.0,74982.0,0.84183677]
[1730977599119,3.07640965,74983.0,74982.0,0.84183677]
[1730977599347,2.99688889,74983.0,74982.0,0.84183677]
[1730977599584,3.07640965,74983.0,74982.0,0.84183677]
[1730977600379,2.99688889,74983.0,74982.0,0.84183677]
[1730977601396,3.07655641,74983.0,74982.0,0.84183677]
[1730977601642,2.99688889,74983.0,74982.0,0.84183677]
[1730977602657,2.99688889,74983.0,74982.0,0.71701138]
[1730977602877,0.01,74965.0,74964.0,0.127966]
[1730977603089,1.09508314,74965.0,74964.0,0.001666]
[1730977603292,1.01681208,74965.0,74964.0,0.001666]
[1730977603495,2.55668125,74965.0,74964.0,0.001666]
[1730977604152,2.51681208,74965.0,74964.0,0.001666]
[1730977604348,2.64905485,74965.0,74964.0,0.001666]
[1730977604547,2.70885861,74965.0,74964.0,0.001666]
[1730977604746,2.64905485,74965.0,74964.0,0.001666]
[1730977604981,2.70890075,74965.0,74964.0,0.001666]
[1730977605399,2.78244985,74965.0,74964.0,0.001666]
[1730977605759,2.64905485,74965.0,74964.0,0.001666]
[1730977607165,2.91470265,74965.0,74964.0,0.002666]
[1730977607461,2.95629931,74965.0,74964.0,0.002666]
[1730977608052,2.95729931,74965.0,74964.0,0.002666]
[1730977608475,2.95629931,74965.0,74964.0,0.001666]
[1730977608892,2.95829931,74965.0,74964.0,0.001666]
[1730977609921,0.243399,74963.0,74962.0,0.001666]
[1730977610129,0.58615385,74963.0,74962.0,0.001666]
[1730977610355,0.50788279,74963.0,74962.0,0.001666]
[1730977610565,0.37448379,74963.0,74962.0,0.001666]
[1730977611026,1.07078379,74963.0,74962.0,0.001666]
[1730977611255,1.15154439,74963.0,74962.0,0.001666]
[1730977611485,1.07178379,74963.0,74962.0,0.002666]
[1730977611773,1.15153895,74963.0,74962.0,0.002666]
[1730977611998,1.20518279,74963.0,74962.0,0.002666]
[1730977612433,0.08827106,74955.0,74953.0,0.129866]
[1730977612661,0.36038755,74955.0,74953.0,0.129866]
[1730977612885,0.33933919,74955.0,74953.0,0.129866]
[1730977613853,0.33933919,74955.0,74954.0,0.002666]
[1730977614078,0.11,74954.0,74953.0,0.12376524]
[1730977614328,0.24224102,74954.0,74953.0,0.12376524]
[1730977615045,0.32051208,74954.0,74953.0,0.12376524]
[1730977616464,0.32051208,74954.0,74953.0,0.12543124]
[1730977616716,0.38032399,74954.0,74953.0,0.12543124]
[1730977616931,1.1315254,74954.0,74953.0,0.12643124]
[1730977617157,1.26376817,74954.0,74953.0,0.12743124]
[1730977619528,1.31713917,74954.0,74953.0,0.12743124]
[1730977619771,1.29887218,74954.0,74953.0,0.12743124]
[1730977619996,1.12508449,74954.0,74953.0,0.12743124]
[1730977623353,1.20482935,74954.0,74953.0,0.12743124]
[1730977623566,1.37831692,74954.0,74953.0,0.003666]
[1730977623791,1.30004586,74954.0,74953.0,0.003666]
[1730977624009,1.29887363,74954.0,74953.0,0.003666]
[1730977624682,1.43228863,74954.0,74953.0,0.002666]
[1730977624931,0.01,74949.0,74948.0,0.001102]
[1730977625166,1.22850714,74949.0,74948.0,0.001102]
[1730977625395,1.42529628,74949.0,74948.0,0.001102]
[1730977625618,0.39997312,74945.0,74944.0,0.00162601]
[1730977625860,0.59676051,74945.0,74944.0,0.00162601]
[1730977626088,0.01,74942.0,74941.0,0.001666]
[1730977626332,0.01,74942.0,74931.0,0.1283]
[1730977626333,0.34471106,74940.0,74931.0,0.1283]
[1730977626570,0.51730122,74940.0,74931.0,0.1283]
[1730977626801,0.38505845,74940.0,74931.0,0.1283]
[1730977627681,0.51849845,74940.0,74931.0,0.1283]
[1730977628133,0.38505845,74940.0,74931.0,0.1283]
[1730977628370,0.47695208,74940.0,74931.0,0.1283]
[1730977628605,0.60919485,74940.0,74931.0,0.1283]
[1730977629301,0.65069095,74940.0,74931.0,0.1283]
[1730977629528,0.73034515,74940.0,74931.0,0.1283]
[1730977629773,0.68884905,74940.0,74931.0,0.1283]
[1730977630217,2.18884905,74940.0,74931.0,0.1283]
[1730977630440,2.05740905,74940.0,74931.0,0.1283]
[1730977630662,2.19084905,74940.0,74931.0,0.1283]
[1730977631340,2.19083294,74940.0,74931.0,0.1283]
[1730977631574,2.15267264,74940.0,74931.0,0.1283]
[1730977631816,0.01,74932.0,74931.0,0.1283]
[1730977632055,1.05163389,74932.0,74931.0,0.1283]
[1730977632284,1.01181608,74932.0,74931.0,0.1283]
[1730977632937,0.005,74911.0,74910.0,0.1306]
[1730977633158,0.90181608,74911.0,74910.0,0.14107796]
[1730977633405,1.01181608,74911.0,74910.0,0.128616]
[1730977633650,0.93354502,74911.0,74910.0,0.128616]
[1730977634076,0.93354502,74911.0,74910.0,0.129616]
[1730977634737,0.93354502,74911.0,74910.0,0.128616]
[1730977634975,0.93354502,74911.0,74910.0,0.129616]
[1730977636036,0.93330454,74911.0,74910.0,0.129616]
[1730977636465,0.93330454,74911.0,74910.0,0.130616]
[1730977636672,0.93330454,74911.0,74910.0,0.129616]
[1730977637546,1.0344621,74911.0,74910.0,0.130616]
[1730977638186,0.133495,74909.0,74908.0,0.00151]
[1730977638397,0.133495,74909.0,74889.0,0.04671]
[1730977638398,0.08827106,74892.0,74889.0,0.04671]
[1730977638611,1.0115756,74892.0,74889.0,0.04671]
[1730977638821,0.93330454,74892.0,74891.0,0.078]
[1730977639033,0.93330454,74892.0,74891.0,0.1232]
[1730977639901,0.93330454,74892.0,74891.0,0.1242]
[1730977640142,0.93330454,74892.0,74891.0,0.1232]
[1730977640351,0.93330454,74892.0,74891.0,0.1252]
[1730977640561,0.82330454,74892.0,74891.0,0.1252]
[1730977640769,0.69106352,74892.0,74891.0,0.1252]
[1730977640985,0.01,74906.0,74891.0,0.1252]
[1730977640986,0.69106352,74905.0,74892.0,0.1237]
[1730977641252,0.69106352,74905.0,74891.0,0.0024]
[1730977641253,0.20032051,74900.0,74896.0,0.0772]
[1730977641484,0.82330454,74905.0,74904.0,0.1274]
[1730977643573,0.82330454,74905.0,74904.0,0.1284]
[1730977644213,0.82330454,74905.0,74904.0,0.1274]
[1730977645448,0.82330454,74905.0,74904.0,0.1284]
[1730977646101,0.82330454,74905.0,74904.0,0.1274]
[1730977646557,0.13224102,74905.0,74904.0,0.1274]
[1730977646701,0.13224102,74905.0,74904.0,0.1284]
[1730977651940,0.13224102,74905.0,74904.0,0.129234]
[1730977652793,0.13224102,74905.0,74904.0,0.529744]
[1730977659097,0.18563402,74905.0,74904.0,0.529744]
[1730977661359,0.18563402,74905.0,74904.0,0.531744]
[1730977661918,0.18563402,74905.0,74904.0,0.529744]
[1730977663553,0.053393,74905.0,74904.0,0.529744]
[1730977676737,0.055061,74905.0,74904.0,0.529744]
[1730977685877,0.055061,74905.0,74904.0,0.531744]
[1730977686085,0.001668,74905.0,74904.0,0.531744]
[1730977686288,0.001668,74905.0,74904.0,0.536744]
[1730977687014,0.001668,74905.0,74904.0,0.559744]
[1730977687214,0.001668,74907.0,74906.0,0.007]
[1730977687409,0.001668,74907.0,74906.0,0.5338]
[1730977689161,0.001668,74907.0,74906.0,0.5348]
[1730977694028,0.001668,74907.0,74906.0,0.55473364]
[1730977697643,0.001668,74907.0,74906.0,0.63311588]
[1730977698450,0.001668,74907.0,74906.0,0.54973364]
[1730977698590,0.001668,74907.0,74906.0,0.54773364]
[1730977699976,0.001668,74907.0,74906.0,0.5268]
[1730977700398,0.001668,74907.0,74906.0,0.4005]
[1730977701262,0.001668,74907.0,74906.0,0.4015]
[1730977703083,0.001668,74907.0,74906.0,0.4035]
[1730977705627,0.001668,74907.0,74906.0,0.60858224]
[1730977706424,0.001668,74907.0,74906.0,0.60658224]
[1730977706934,0.001668,74907.0,74906.0,0.5282]
[1730977707803,0.001668,74907.0,74906.0,0.5302]
[1730977710274,0.001668,74907.0,74906.0,0.5282]
[1730977711792,0.001668,74907.0,74906.0,0.5272]
[1730977711987,0.001668,74907.0,74906.0,0.5282]
[1730977712987,0.001668,74907.0,74906.0,0.5302]
[1730977714221,0.001668,74907.0,74906.0,0.55515159]
[1730977717518,0.001668,74907.0,74906.0,0.55515487]
[1730977718878,0.001668,74907.0,74906.0,0.58181487]
[1730977719083,0.001668,74907.0,74906.0,0.55515487]
[1730977719426,0.001668,74907.0,74906.0,0.55315487]
[1730977721133,0.001668,74907.0,74906.0,0.5282]
[1730977721336,0.001668,74907.0,74906.0,0.5272]
[1730977721661,0.001668,74907.0,74906.0,0.5282]
[1730977725265,0.001668,74907.0,74906.0,0.55317291]
[1730977727204,0.001668,74907.0,74906.0,0.55517291]
[1730977728295,0.001668,74907.0,74906.0,0.55317291]
[1730977730204,0.13390902,74907.0,74906.0,0.55317291]
[1730977730435,0.13390902,74907.0,74906.0,0.42647291]
[1730977731224,0.13390902,74907.0,74906.0,0.42649963]
[1730977733475,0.18896967,74907.0,74906.0,0.42649963]
[1730977733676,0.18896967,74907.0,74906.0,0.42549963]
[1730977734053,0.18896967,74907.0,74906.0,0.42649963]
[1730977734448,0.18896967,74907.0,74906.0,0.4015]
[1730977734650,0.18896967,74907.0,74906.0,0.42649454]
[1730977735725,0.18896967,74907.0,74906.0,0.4015]
[1730977735923,0.18896967,74907.0,74906.0,0.42649362]
[1730977736073,0.18896967,74907.0,74906.0,0.4015]
[1730977737220,0.13390902,74907.0,74906.0,0.4015]
[1730977737345,0.13390902,74907.0,74906.0,0.42649245]
[1730977740050,0.13370707,74907.0,74906.0,0.42649245]
[1730977741674,0.13370707,74907.0,74906.0,0.42549245]
[1730977741877,0.13370707,74907.0,74906.0,0.42649245]
[1730977742503,0.13370707,74907.0,74906.0,0.42549245]
[1730977743162,0.13370707,74907.0,74906.0,0.42649245]
[1730977743745,0.13370707,74907.0,74906.0,0.42649834]
[1730977746491,0.13370707,74907.0,74906.0,0.42733134]
[1730977747087,0.13370707,74907.0,74906.0,0.402333]
[1730977747289,0.13370707,74907.0,74906.0,0.427331]
[1730977749116,0.17370717,74907.0,74906.0,0.402333]
[1730977749323,0.13370707,74907.0,74906.0,0.402333]
[1730977749494,0.19370659,74907.0,74906.0,0.402333]
[1730977749636,0.88477011,74907.0,74906.0,0.402333]
[1730977750558,0.82477059,74907.0,74906.0,0.402333]
[1730977752136,0.82477059,74907.0,74906.0,0.401333]
[1730977752341,0.86475551,74907.0,74906.0,0.401333]
[1730977756658,0.86475551,74907.0,74906.0,0.41382904]
[1730977757287,0.86475551,74907.0,74906.0,0.401333]
[1730977757495,0.86475551,74907.0,74906.0,0.41382877]
[1730977761623,0.82477059,74907.0,74906.0,0.41382877]
[1730977763598,0.13370707,74907.0,74906.0,0.41382877]
[1730977764019,0.13370707,74907.0,74906.0,0.46322877]
[1730977764235,0.13370707,74907.0,74906.0,0.450733]
[1730977764572,0.13370707,74907.0,74906.0,0.46322925]
[1730977765871,0.13370707,74907.0,74906.0,0.450733]
[1730977766071,0.13370707,74907.0,74906.0,0.48822343]
[1730977768236,0.13370707,74907.0,74906.0,0.46322981]
[1730977768510,0.13370707,74907.0,74906.0,0.450733]
[1730977773324,0.13370707,74907.0,74906.0,0.46323247]
[1730977778716,0.00146605,74907.0,74906.0,0.450733]
[1730977778874,0.00146605,74907.0,74906.0,0.62881784]
[1730977779079,0.001668,74911.0,74910.0,0.005]
[1730977779395,0.20032051,74921.0,74910.0,0.005]
[1730977779396,0.20032051,74921.0,74915.0,0.005]
[1730977779632,0.20032051,74921.0,74910.0,0.92925477]
[1730977779633,0.20032051,74921.0,74920.0,0.20978224]
[1730977779839,0.20032051,74921.0,74920.0,0.6128814]
[1730977780040,0.20032051,74929.0,74926.0,0.1264]
[1730977780195,0.20032051,74929.0,74927.0,0.40039]
[1730977780396,0.20032051,74938.0,74927.0,0.40039]
[1730977780599,0.13224102,74937.0,74928.0,0.01248046]
[1730977780887,0.13224102,74937.0,74929.0,0.41286046]
[1730977781046,0.13224102,74937.0,74929.0,0.40038]
[1730977781252,0.13224102,74937.0,74936.0,0.002]
[1730977781462,0.13224102,74937.0,74936.0,0.40234]
[1730977782476,0.13224102,74937.0,74936.0,0.40034]
[1730977784873,0.13224102,74937.0,74936.0,0.40234]
[1730977785588,0.13224102,74937.0,74936.0,0.40034]
[1730977786145,0.13224102,74937.0,74936.0,0.40234]
[1730977786967,0.13224102,74937.0,74936.0,0.40034]
[1730977788781,0.053371,74944.0,74937.0,0.0789]
[1730977788981,0.0139285,74975.0,74940.0,0.07838224]
[1730977788982,0.101666,74954.0,74940.0,0.07838224]
[1730977789186,0.101666,74954.0,74949.0,0.0477]
[1730977789187,0.053363,74953.0,74949.0,0.0477]
[1730977789398,0.001666,74954.0,74952.0,0.15728224]
[1730977789609,0.001666,74954.0,74953.0,0.40025]
[1730977791130,0.001666,74954.0,74953.0,0.40225]
[1730977801149,0.001666,74954.0,74953.0,0.40725]
[1730977803127,0.001666,74954.0,74953.0,0.45335]
[1730977804618,0.001666,74954.0,74953.0,0.52975]
[1730977806669,0.001666,74954.0,74953.0,0.5836694]
[1730977808629,0.001666,74954.0,74953.0,0.71288294]
[1730977809010,0.001666,74954.0,74953.0,0.84512396]
[1730977809802,0.20032051,74973.0,74963.0,0.1347]
[1730977810004,0.20032051,74973.0,74972.0,0.007]
[1730977810157,0.20032051,74973.0,74972.0,0.66406354]
[1730977810490,0.000756,74980.0,74979.0,0.1297]
[1730977810721,0.000756,74980.0,74979.0,0.52981]
[1730977811358,0.000756,74980.0,74979.0,0.53481]
[1730977812356,0.000756,74980.0,74979.0,0.52781]
[1730977812521,0.000756,74980.0,74979.0,0.40011]
[1730977813566,0.000756,74980.0,74979.0,0.40211]
[1730977815160,0.000756,74980.0,74979.0,0.40011]
[1730977817359,0.000756,74980.0,74979.0,0.4207653]
[1730977817682,0.000756,74980.0,74979.0,0.42077373]
[1730977817886,0.000756,74980.0,74979.0,0.40211]
[1730977819221,0.000756,74980.0,74979.0,0.40011]
[1730977819636,0.000756,74980.0,74979.0,0.40211]
[1730977820151,0.000756,74980.0,74979.0,0.4219548]
[1730977821197,0.000756,74980.0,74979.0,0.4199548]
[1730977824292,0.07895092,74980.0,74979.0,0.4199548]
[1730977824482,0.21119194,74980.0,74979.0,0.4199548]
[1730977824612,0.13299702,74980.0,74979.0,0.4199548]
[1730977826998,0.21119194,74980.0,74979.0,0.4199548]
[1730977828022,0.21119194,74980.0,74979.0,0.40011]
[1730977828229,0.21119194,74980.0,74979.0,0.41999387]
[1730977829255,0.28689194,74980.0,74979.0,0.41999387]
[1730977830295,0.28689194,74980.0,74979.0,0.40011]
[1730977831081,0.28689194,74980.0,74979.0,0.42001274]
[1730977831864,0.28689194,74980.0,74979.0,0.40011]
[1730977834082,0.40989194,74980.0,74979.0,0.40011]
[1730977834293,0.63032963,74980.0,74979.0,0.40011]
[1730977834508,0.67298379,74980.0,74979.0,0.40011]
[1730977834738,0.51042087,74980.0,74979.0,0.40011]
[1730977834904,0.58861579,74980.0,74979.0,0.40011]
[1730977835104,0.51042087,74980.0,74979.0,0.40011]
[1730977835535,0.55021808,74980.0,74979.0,0.40011]
[1730977836302,0.36022595,74980.0,74979.0,0.40011]
[1730977836545,0.24299702,74980.0,74979.0,0.40011]
[1730977847983,0.23299702,74980.0,74979.0,0.40011]
[1730977848219,0.000756,74980.0,74979.0,0.40211]
[1730977848384,0.000756,74980.0,74979.0,0.52511]
[1730977851395,0.13299702,74980.0,74979.0,0.52511]
[1730977852186,0.13299702,74980.0,74979.0,0.40011]
[1730977872493,0.39741665,74980.0,74979.0,0.40011]
[1730977872707,0.381451,74980.0,74979.0,0.40011]
[1730977872945,2.14464478,74980.0,74979.0,0.40011]
[1730977873175,2.22676871,74980.0,74979.0,0.40011]
[1730977873590,2.14291756,74980.0,74979.0,0.40011]
[1730977874234,2.14391756,74980.0,74979.0,0.40011]
[1730977875502,2.14291756,74980.0,74979.0,0.40011]
[1730977875735,2.10644114,74980.0,74979.0,0.30934482]
[1730977875946,2.22716549,74980.0,74979.0,0.30934482]
[1730977876147,2.36387769,74980.0,74979.0,0.30934482]
[1730977876379,2.20221062,74980.0,74979.0,0.30934482]
[1730977876811,2.20421062,74980.0,74979.0,0.30934482]
[1730977877025,2.07184262,74980.0,74979.0,0.30934482]
[1730977877238,2.06984262,74980.0,74979.0,0.30934482]
[1730977877451,2.07384262,74980.0,74979.0,0.30934482]
[1730977877672,2.07784262,74980.0,74979.0,0.30934482]
[1730977877877,1.94559985,74980.0,74979.0,0.30934482]
[1730977878316,2.0037173,74980.0,74979.0,0.30934482]
[1730977878519,1.85439702,74980.0,74979.0,0.30934482]
[1730977878742,1.95010877,74980.0,74979.0,0.30934482]
[1730977878936,1.95210877,74980.0,74979.0,0.30934482]
[1730977879228,2.07935154,74980.0,74979.0,0.30934482]
[1730977879354,2.08035154,74980.0,74979.0,0.30934482]
[1730977882087,2.08033282,74980.0,74979.0,0.30934482]
[1730977882500,2.02215623,74980.0,74979.0,0.30934482]
[1730977882921,1.98063979,74980.0,74979.0,0.26533082]
[1730977884044,1.84839702,74980.0,74979.0,0.26533082]
[1730977885458,1.94805545,74980.0,74979.0,0.26533082]
[1730977885677,1.88990911,74980.0,74979.0,0.26533082]
[1730977887107,1.88990911,74980.0,74979.0,0.26699682]
[1730977891403,1.9895185,74980.0,74979.0,0.22593381]
[1730977891983,1.98951648,74980.0,74979.0,0.22593381]
[1730977892334,2.02053151,74980.0,74979.0,0.22593381]
[1730977893065,1.92092414,74980.0,74979.0,0.22593381]
[1730977893246,2.0205238,74980.0,74979.0,0.22593381]
[1730977893435,1.87941205,74980.0,74979.0,0.22593381]
[1730977893640,1.92092739,74980.0,74979.0,0.22593381]